fUSD/lending_fUSD_20260510
["ID","MTS","AMOUNT","RATE_DAILY","PERIOD"]
[421945921,1778362244000,-500.0,0.00035616,7]
[421945923,1778362244000,-400.0,0.00035616,7]
[421945919,1778362244000,-500.0,0.00035616,7]
[421945920,1778362244000,-500.0,0.00035616,7]
[421945924,1778362244000,-500.0,0.00035616,7]
[421945864,1778362244000,-3068.7527018,0.00034558,2]
[421945901,1778362244000,-500.0,0.00035616,7]
[421945896,1778362244000,-2136.88833533,0.00035584,2]
[421945926,1778362244000,-500.0,0.00035616,7]
[421945894,1778362244000,-235.68384134,0.00035506,3]
[421945893,1778362244000,-235.68384133,0.00035506,3]
[421945876,1778362244000,-153.0,0.00034846,30]
[421945869,1778362244000,-2136.88833533,0.00034774,2]
[421945870,1778362244000,-2136.88833533,0.00034778,2]
[421945879,1778362244000,-2136.88833533,0.00034942,2]
[421945871,1778362244000,-1500.0,0.00034795,2]
[421945878,1778362244000,-800.0,0.000349,12]
[421945880,1778362244000,-316.91,0.00034986,120]
[421945873,1778362244000,-539.0,0.00034846,30]
[421945872,1778362244000,-2136.88833533,0.0003483,2]
[421945875,1778362244000,-207.0,0.00034846,30]
[421945874,1778362244000,-735.0,0.00034846,30]
[421945885,1778362244000,-1500.0,0.000352,7]
[421945862,1778362244000,-151.0,0.00034505,7]
[421945882,1778362244000,-2136.88833533,0.00035029,2]
[421945903,1778362244000,-500.0,0.00035616,7]
[421945902,1778362244000,-500.0,0.00035616,7]
[421945898,1778362244000,-500.0,0.00035616,7]
[421945887,1778362244000,-34376.29544996,0.00035215,2]
[421945888,1778362244000,-503.0,0.00035262,13]
[421945890,1778362244000,-2136.88833533,0.00035388,2]
[421945891,1778362244000,-300.0,0.00035506,3]
[421945881,1778362244000,-2136.88833533,0.00035026,2]
[421945892,1778362244000,-300.0,0.00035506,3]
[421945883,1778362244000,-2136.88833533,0.00035033,2]
[421945884,1778362244000,-2136.88833533,0.00035171,2]
[421945886,1778362244000,-1113.1,0.000352,7]
[421945889,1778362244000,-2136.88833533,0.00035286,2]
[421945964,1778362245000,-1113.1,0.000359,7]
[421945965,1778362245000,-503.0,0.00035901,14]
[421945967,1778362245000,-34690.35260984,0.00036319,2]
[421945966,1778362245000,-151.0,0.00036153,30]
[421945960,1778362245000,-539.0,0.00035846,30]
[421945961,1778362245000,-735.0,0.00035846,30]
[421945957,1778362245000,-2136.88833533,0.00035642,2]
[421945959,1778362245000,-152.0,0.0003573,7]
[421945958,1778362245000,-152.0,0.00035655,7]
[421945963,1778362245000,-153.0,0.00035846,30]
[421945962,1778362245000,-207.0,0.00035846,30]
[421945969,1778362245000,-503.0,0.0003654,14]
[421945977,1778362245000,-800.0,0.000369,13]
[421945978,1778362245000,-622.35,0.00036911,2]
[421945971,1778362245000,-250.0,0.000367,30]
[421945974,1778362245000,-735.0,0.00036846,30]
[421945970,1778362245000,-151.0,0.00036686,14]
[421945973,1778362245000,-539.0,0.00036846,30]
[421945979,1778362245000,-3068.7527018,0.0003693,2]
[421945968,1778362245000,-480.19366928,0.00036508,68]
[421945972,1778362245000,-365.40364611,0.0003677,120]
[421945976,1778362245000,-153.0,0.00036846,30]
[421945975,1778362245000,-207.0,0.00036846,30]
[421945981,1778362245000,-1000.0,0.00037,7]
[421945953,1778362245000,-500.0,0.00035616,7]
[421945980,1778362245000,-1873.34,0.00037,7]
[421945956,1778362245000,-183.35,0.00035616,2]
[421945935,1778362245000,-500.0,0.00035616,7]
[421945946,1778362245000,-500.0,0.00035616,7]
[421945928,1778362245000,-500.0,0.00035616,7]
[421945929,1778362245000,-500.0,0.00035616,7]
[421945931,1778362245000,-500.0,0.00035616,7]
[421945930,1778362245000,-500.0,0.00035616,7]
[421945927,1778362245000,-500.0,0.00035616,7]
[421945933,1778362245000,-500.0,0.00035616,7]
[421945942,1778362245000,-500.0,0.00035616,7]
[421945932,1778362245000,-500.0,0.00035616,7]
[421945943,1778362245000,-500.0,0.00035616,7]
[421945934,1778362245000,-500.0,0.00035616,7]
[421945941,1778362245000,-500.0,0.00035616,7]
[421945937,1778362245000,-500.0,0.00035616,7]
[421945944,1778362245000,-500.0,0.00035616,7]
[421945936,1778362245000,-500.0,0.00035616,7]
[421945940,1778362245000,-500.0,0.00035616,7]
[421945938,1778362245000,-500.0,0.00035616,7]
[421945951,1778362245000,-500.0,0.00035616,7]
[421945955,1778362245000,-282.50555538,0.00035616,2]
[421945948,1778362245000,-218.37717688,0.00035616,7]
[421945949,1778362245000,-500.0,0.00035616,7]
[421945954,1778362245000,-500.0,0.00035616,7]
[421945945,1778362245000,-500.0,0.00035616,7]
[421945947,1778362245000,-500.0,0.00035616,7]
[421945990,1778362245000,-350.0,0.00037504,2]
[421945952,1778362245000,-500.0,0.00035616,7]
[421945950,1778362245000,-500.0,0.00035616,7]
[421945939,1778362245000,-500.0,0.00035616,7]
[421945991,1778362245000,-365.40364611,0.0003752,120]
[421946016,1778362245000,-301.48155124,0.00037613,2]
[421945982,1778362245000,-365.40364611,0.0003702,120]
[421946015,1778362245000,-725.31429466,0.00037613,2]
[421946014,1778362245000,-399.46100559,0.00037613,2]
[421946022,1778362245000,-1145.98254531,0.00037613,2]
[421946020,1778362245000,-343.62395792,0.00037613,2]
[421946019,1778362245000,-853.29787158,0.00037613,2]
[421946023,1778362245000,-863.54795654,0.00037613,2]
[421946021,1778362245000,-526.35006308,0.00037613,2]
[421946024,1778362245000,-310.57459591,0.00037613,2]
[421946026,1778362245000,-576.5741924,0.00037613,2]
[421946025,1778362245000,-463.36822182,0.00037613,2]
[421946029,1778362245000,-483.58541473,0.00037613,2]
[421946033,1778362245000,-492.17769921,0.00037613,2]
[421946030,1778362245000,-309.51003376,0.00037613,2]
[421946032,1778362245000,-1093.57565763,0.00037613,2]
[421946028,1778362245000,-300.0,0.00037613,2]
[421946027,1778362245000,-451.4433371,0.00037613,2]
[421946035,1778362245000,-300.0,0.00037613,2]
[421946034,1778362245000,-603.8329142,0.00037613,2]
[421946036,1778362245000,-527.1999469,0.00037613,2]
[421946039,1778362245000,-399.46100559,0.00037613,2]
[421946037,1778362245000,-1065.80891604,0.00037613,2]
[421946041,1778362245000,-301.48155124,0.00037613,2]
[421946038,1778362245000,-892.47111794,0.00037613,2]
[421946040,1778362245000,-725.31429466,0.00037613,2]
[421945993,1778362245000,-166.49214931,0.00037592,2]
[421946013,1778362245000,-527.1999469,0.00037613,2]
[421946010,1778362245000,-492.17769921,0.00037613,2]
[421946031,1778362245000,-300.0,0.00037613,2]
[421946012,1778362245000,-300.0,0.00037613,2]
[421946011,1778362245000,-603.8329142,0.00037613,2]
[421945992,1778362245000,-201.99328766,0.00037524,2]
[421945983,1778362245000,-1113.1,0.000371,7]
[421945986,1778362245000,-700.0,0.00037404,2]
[421945984,1778362245000,-503.0,0.0003718,15]
[421945989,1778362245000,-160.06,0.00037443,60]
[421945987,1778362245000,-500.0,0.00037413,2]
[421945985,1778362245000,-365.40364611,0.0003727,120]
[421945994,1778362245000,-1050.51437936,0.00037599,2]
[421945995,1778362245000,-300.0,0.00037613,2]
[421945997,1778362245000,-853.29787158,0.00037613,2]
[421946000,1778362245000,-526.35006308,0.00037613,2]
[421945998,1778362245000,-1794.44722741,0.00037613,2]
[421945988,1778362245000,-10000.0,0.00037414,2]
[421946018,1778362245000,-300.25804147,0.00037613,2]
[421946009,1778362245000,-1093.57565763,0.00037613,2]
[421945996,1778362245000,-300.25804147,0.00037613,2]
[421946017,1778362245000,-300.0,0.00037613,2]
[421946008,1778362245000,-300.0,0.00037613,2]
[421946007,1778362245000,-309.51003376,0.00037613,2]
[421946004,1778362245000,-576.5741924,0.00037613,2]
[421946006,1778362245000,-483.58541473,0.00037613,2]
[421945999,1778362245000,-343.62395792,0.00037613,2]
[421946005,1778362245000,-451.4433371,0.00037613,2]
[421946003,1778362245000,-463.36822182,0.00037613,2]
[421946002,1778362245000,-863.54795654,0.00037613,2]
[421946001,1778362245000,-1145.98254531,0.00037613,2]
[421946086,1778362246000,-483.58541473,0.00037613,2]
[421946081,1778362246000,-310.57459591,0.00037613,2]
[421946073,1778362246000,-1794.44722741,0.00037613,2]
[421946078,1778362246000,-309.26886467,0.00037613,2]
[421946076,1778362246000,-1145.98254531,0.00037613,2]
[421946084,1778362246000,-451.4433371,0.00037613,2]
[421946075,1778362246000,-526.35006308,0.00037613,2]
[421946082,1778362246000,-463.36822182,0.00037613,2]
[421946074,1778362246000,-343.62395792,0.00037613,2]
[421946085,1778362246000,-300.0,0.00037613,2]
[421946087,1778362246000,-309.51003376,0.00037613,2]
[421946079,1778362246000,-863.54795654,0.00037613,2]
[421946088,1778362246000,-300.0,0.00037613,2]
[421946109,1778362246000,-576.5741924,0.00037613,2]
[421946092,1778362246000,-527.1999469,0.00037613,2]
[421946090,1778362246000,-492.17769921,0.00037613,2]
[421946089,1778362246000,-1093.57565763,0.00037613,2]
[421946099,1778362246000,-300.25804147,0.00037613,2]
[421946097,1778362246000,-301.48155124,0.00037613,2]
[421946093,1778362246000,-1065.80891604,0.00037613,2]
[421946094,1778362246000,-892.47111794,0.00037613,2]
[421946096,1778362246000,-725.31429466,0.00037613,2]
[421946098,1778362246000,-520.7660039,0.00037613,2]
[421946095,1778362246000,-399.46100559,0.00037613,2]
[421946100,1778362246000,-853.29787158,0.00037613,2]
[421946108,1778362246000,-463.36822182,0.00037613,2]
[421946083,1778362246000,-576.5741924,0.00037613,2]
[421946091,1778362246000,-603.8329142,0.00037613,2]
[421946069,1778362246000,-301.48155124,0.00037613,2]
[421946042,1778362246000,-300.0,0.00037613,2]
[421946068,1778362246000,-399.46100559,0.00037613,2]
[421946048,1778362246000,-1145.98254531,0.00037613,2]
[421946113,1778362246000,-309.51003376,0.00037613,2]
[421946047,1778362246000,-526.35006308,0.00037613,2]
[421946045,1778362246000,-1794.44722741,0.00037613,2]
[421946043,1778362246000,-300.25804147,0.00037613,2]
[421946044,1778362246000,-853.29787158,0.00037613,2]
[421946046,1778362246000,-343.62395792,0.00037613,2]
[421946050,1778362246000,-863.54795654,0.00037613,2]
[421946049,1778362246000,-309.26886467,0.00037613,2]
[421946051,1778362246000,-310.57459591,0.00037613,2]
[421946052,1778362246000,-463.36822182,0.00037613,2]
[421946053,1778362246000,-576.5741924,0.00037613,2]
[421946059,1778362246000,-1093.57565763,0.00037613,2]
[421946054,1778362246000,-451.4433371,0.00037613,2]
[421946056,1778362246000,-483.58541473,0.00037613,2]
[421946057,1778362246000,-309.51003376,0.00037613,2]
[421946055,1778362246000,-300.0,0.00037613,2]
[421946058,1778362246000,-300.0,0.00037613,2]
[421946061,1778362246000,-603.8329142,0.00037613,2]
[421946072,1778362246000,-853.29787158,0.00037613,2]
[421946071,1778362246000,-300.25804147,0.00037613,2]
[421946060,1778362246000,-492.17769921,0.00037613,2]
[421946062,1778362246000,-356.09725876,0.00037613,2]
[421946064,1778362246000,-1065.80891604,0.00037613,2]
[421946063,1778362246000,-527.1999469,0.00037613,2]
[421946065,1778362246000,-892.47111794,0.00037613,2]
[421946067,1778362246000,-725.31429466,0.00037613,2]
[421946070,1778362246000,-300.0,0.00037613,2]
[421946111,1778362246000,-306.05504662,0.00037613,2]
[421946105,1778362246000,-309.26886467,0.00037613,2]
[421946165,1778362246000,-1000.0,0.00038288,60]
[421946148,1778362246000,-151.0,0.00037613,7]
[421946141,1778362246000,-702.9332627,0.00037613,2]
[421946138,1778362246000,-1093.57565763,0.00037613,2]
[421946142,1778362246000,-1065.80891604,0.00037613,2]
[421946140,1778362246000,-805.1105525,0.00037613,2]
[421946143,1778362246000,-892.47111794,0.00037613,2]
[421946139,1778362246000,-656.23693228,0.00037613,2]
[421946149,1778362246000,-151.0,0.00037613,7]
[421946150,1778362246000,-204.977196,0.00037613,7]
[421946144,1778362246000,-532.61467441,0.00037613,2]
[421946147,1778362246000,-400.34405546,0.00037613,2]
[421946152,1778362246000,-299.308539,0.00037613,7]
[421946151,1778362246000,-299.308539,0.00037613,7]
[421946157,1778362246000,-1000.0,0.000379,7]
[421946160,1778362246000,-499.999999,0.000381,120]
[421946161,1778362246000,-151.0,0.00038125,30]
[421946159,1778362246000,-34690.35260984,0.00038049,2]
[421946155,1778362246000,-1444.0,0.00037753,120]
[421946158,1778362246000,-350.0,0.00037929,2]
[421946153,1778362246000,-299.308539,0.00037613,7]
[421946154,1778362246000,-299.308539,0.00037613,7]
[421946156,1778362246000,-503.0,0.00037819,16]
[421946163,1778362246000,-10266.7191,0.00038251,2]
[421946102,1778362246000,-343.62395792,0.00037613,2]
[421946162,1778362246000,-1000.0,0.00038214,60]
[421946166,1778362246000,-754.52,0.000383,14]
[421946164,1778362246000,-1000.0,0.00038261,60]
[421946145,1778362246000,-967.08572626,0.00037613,2]
[421946137,1778362246000,-309.51003376,0.00037613,2]
[421946146,1778362246000,-301.48155124,0.00037613,2]
[421946136,1778362246000,-483.58541473,0.00037613,2]
[421946101,1778362246000,-1794.44722741,0.00037613,2]
[421946104,1778362246000,-1145.98254531,0.00037613,2]
[421946135,1778362246000,-451.4433371,0.00037613,2]
[421946110,1778362246000,-451.4433371,0.00037613,2]
[421946107,1778362246000,-310.57459591,0.00037613,2]
[421946112,1778362246000,-483.58541473,0.00037613,2]
[421946106,1778362246000,-863.54795654,0.00037613,2]
[421946126,1778362246000,-1794.44722741,0.00037613,2]
[421946116,1778362246000,-492.17769921,0.00037613,2]
[421946122,1778362246000,-725.31429466,0.00037613,2]
[421946123,1778362246000,-301.48155124,0.00037613,2]
[421946121,1778362246000,-399.46100559,0.00037613,2]
[421946125,1778362246000,-853.29787158,0.00037613,2]
[421946124,1778362246000,-300.25804147,0.00037613,2]
[421946103,1778362246000,-526.35006308,0.00037613,2]
[421946117,1778362246000,-603.8329142,0.00037613,2]
[421946115,1778362246000,-1093.57565763,0.00037613,2]
[421946131,1778362246000,-863.54795654,0.00037613,2]
[421946133,1778362246000,-463.36822182,0.00037613,2]
[421946130,1778362246000,-309.26886467,0.00037613,2]
[421946134,1778362246000,-576.5741924,0.00037613,2]
[421946129,1778362246000,-1145.98254531,0.00037613,2]
[421946132,1778362246000,-310.57459591,0.00037613,2]
[421946128,1778362246000,-526.35006308,0.00037613,2]
[421946118,1778362246000,-527.1999469,0.00037613,2]
[421946114,1778362246000,-590.316086,0.00037613,2]
[421946120,1778362246000,-892.47111794,0.00037613,2]
[421946127,1778362246000,-343.62395792,0.00037613,2]
[421946119,1778362246000,-1065.80891604,0.00037613,2]
[421946206,1778362247000,-2471.803,0.000388,120]
[421946202,1778362247000,-9689.7254,0.00038762,2]
[421946204,1778362247000,-700.0,0.0003877,2]
[421946200,1778362247000,-454.44673,0.00038762,105]
[421946199,1778362247000,-454.44673,0.00038762,105]
[421946201,1778362247000,-454.44674,0.00038762,105]
[421946196,1778362247000,-1000.0,0.00038733,90]
[421946194,1778362247000,-1000.0,0.00038677,90]
[421946198,1778362247000,-454.44673,0.00038762,105]
[421946216,1778362247000,-436.0956,0.00038934,30]
[421946203,1778362247000,-700.0,0.0003877,2]
[421946214,1778362247000,-151.75,0.00038926,120]
[421946209,1778362247000,-6770.10001407,0.0003888,60]
[421946207,1778362247000,-154.45974035,0.0003882,5]
[421946213,1778362247000,-1561.0,0.00038904,30]
[421946208,1778362247000,-4305.00812003,0.00038834,2]
[421946212,1778362247000,-1700.0,0.000389,14]
[421946205,1778362247000,-250.98627935,0.00038774,2]
[421946215,1778362247000,-160.37,0.00038929,120]
[421946210,1778362247000,-9689.7254,0.00038899,2]
[421946229,1778362247000,-151.0,0.00039,30]
[421946227,1778362247000,-246.14849,0.00039,7]
[421946217,1778362247000,-151.75,0.00038944,120]
[421946197,1778362247000,-1000.0,0.00038744,90]
[421946211,1778362247000,-2000.0,0.000389,7]
[421946195,1778362247000,-2005.9555727,0.00038699,30]
[421946223,1778362247000,-4500.0,0.00039,120]
[421946191,1778362247000,-1000.0,0.00038633,90]
[421946167,1778362247000,-1113.1,0.000383,7]
[421946170,1778362247000,-230.68,0.00038356,120]
[421946173,1778362247000,-250.0,0.00038359,5]
[421946168,1778362247000,-1000.0,0.00038323,60]
[421946169,1778362247000,-9689.7254,0.00038351,2]
[421946172,1778362247000,-150.0,0.00038356,5]
[421946171,1778362247000,-1561.0,0.00038356,30]
[421946182,1778362247000,-1000.0,0.00038433,90]
[421946174,1778362247000,-350.0,0.00038362,5]
[421946181,1778362247000,-3585.75,0.00038421,2]
[421946175,1778362247000,-450.0,0.00038364,5]
[421946177,1778362247000,-650.0,0.0003837,5]
[421946178,1778362247000,-454.44673,0.0003837,101]
[421946179,1778362247000,-454.44673,0.0003837,101]
[421946176,1778362247000,-550.0,0.00038367,5]
[421946180,1778362247000,-698.95886867,0.00038373,5]
[421946187,1778362247000,-1000.0,0.00038464,90]
[421946189,1778362247000,-9689.7254,0.00038625,2]
[421946190,1778362247000,-1561.0,0.0003863,30]
[421946184,1778362247000,-1000.0,0.00038448,90]
[421946185,1778362247000,-200.0,0.00038452,20]
[421946186,1778362247000,-503.0,0.00038458,16]
[421946193,1778362247000,-1000.0,0.00038648,90]
[421946188,1778362247000,-9689.7254,0.00038488,2]
[421946183,1778362247000,-1000.0,0.00038439,90]
[421946192,1778362247000,-150.1722909,0.00038646,2]
[421946219,1778362247000,-151.75,0.00038945,120]
[421946256,1778362247000,-1101.25,0.000392,90]
[421946220,1778362247000,-150.76,0.00038945,120]
[421946245,1778362247000,-160.0,0.000391,60]
[421946253,1778362247000,-150.76,0.00039145,120]
[421946247,1778362247000,-151.0,0.000391,30]
[421946248,1778362247000,-151.0,0.000391,30]
[421946250,1778362247000,-151.0,0.000391,30]
[421946262,1778362247000,-151.75,0.00039245,120]
[421946260,1778362247000,-1685.45,0.00039243,120]
[421946268,1778362247000,-400.0,0.00039289,2]
[421946263,1778362247000,-150.76,0.00039245,120]
[421946266,1778362247000,-200.0,0.00039282,6]
[421946258,1778362247000,-345.45,0.00039243,120]
[421946261,1778362247000,-1200.69,0.00039243,120]
[421946267,1778362247000,-200.0,0.00039283,6]
[421946264,1778362247000,-160.06,0.00039269,60]
[421946269,1778362247000,-400.0,0.00039289,2]
[421946259,1778362247000,-240.33,0.00039243,120]
[421946265,1778362247000,-200.0,0.00039282,6]
[421946274,1778362247000,-160.37,0.00039329,120]
[421946273,1778362247000,-9689.7254,0.0003931,2]
[421946272,1778362247000,-3068.7527018,0.00039302,2]
[421946271,1778362247000,-754.52,0.000393,14]
[421946275,1778362247000,-151.75,0.00039345,120]
[421946276,1778362247000,-150.76,0.00039345,120]
[421946277,1778362247000,-154.45974035,0.00039367,5]
[421946221,1778362247000,-31266.45202024,0.00039,2]
[421946257,1778362247000,-160.37,0.00039229,120]
[421946254,1778362247000,-9689.7254,0.00039173,2]
[421946270,1778362247000,-400.0,0.00039289,2]
[421946244,1778362247000,-503.0,0.00039097,17]
[421946246,1778362247000,-151.0,0.000391,30]
[421946222,1778362247000,-537.47379803,0.00039,2]
[421946228,1778362247000,-246.14849,0.00039,7]
[421946225,1778362247000,-151.0,0.00039,30]
[421946218,1778362247000,-151.75,0.00038944,120]
[421946230,1778362247000,-160.37,0.00039029,120]
[421946226,1778362247000,-246.14849,0.00039,7]
[421946235,1778362247000,-150.76,0.00039045,120]
[421946236,1778362247000,-5000.0,0.00039062,30]
[421946234,1778362247000,-151.75,0.00039045,120]
[421946242,1778362247000,-5000.0,0.00039062,30]
[421946243,1778362247000,-154.45974035,0.00039093,5]
[421946224,1778362247000,-246.14849,0.00039,7]
[421946237,1778362247000,-5000.0,0.00039062,30]
[421946278,1778362247000,-160.37,0.00039429,120]
[421946232,1778362247000,-151.75,0.00039044,120]
[421946255,1778362247000,-1561.0,0.00039178,30]
[421946251,1778362247000,-160.37,0.00039129,120]
[421946249,1778362247000,-151.0,0.000391,30]
[421946239,1778362247000,-5000.0,0.00039062,30]
[421946252,1778362247000,-151.75,0.00039145,120]
[421946233,1778362247000,-151.75,0.00039044,120]
[421946241,1778362247000,-5000.0,0.00039062,30]
[421946238,1778362247000,-5000.0,0.00039062,30]
[421946231,1778362247000,-9689.7254,0.00039036,2]
[421946240,1778362247000,-5000.0,0.00039062,30]
[421946300,1778362248000,-1127.0,0.000397,7]
[421946302,1778362248000,-3400.0,0.000397,14]
[421946304,1778362248000,-9689.7254,0.00039721,2]
[421946303,1778362248000,-393.51161888,0.00039719,120]
[421946305,1778362248000,-255.78255227,0.00039723,120]
[421946306,1778362248000,-1561.0,0.00039726,30]
[421946308,1778362248000,-503.0,0.00039736,18]
[421946310,1778362248000,-150.76,0.00039745,120]
[421946299,1778362248000,-484.32199247,0.00039697,120]
[421946311,1778362248000,-1591.0856971,0.0003977,2]
[421946312,1778362248000,-292.53,0.00039774,120]
[421946313,1778362248000,-25766.48092093,0.0003978,2]
[421946307,1778362248000,-160.37,0.00039729,120]
[421946316,1778362248000,-206.78654822,0.0003978,8]
[421946314,1778362248000,-1580.64334214,0.0003978,2]
[421946324,1778362248000,-1344.52013298,0.000398,14]
[421946325,1778362248000,-2000.0,0.000398,14]
[421946309,1778362248000,-151.75,0.00039745,120]
[421946301,1778362248000,-1600.0,0.000397,14]
[421946291,1778362248000,-255.78255229,0.00039591,120]
[421946294,1778362248000,-2500.0,0.000396,14]
[421946319,1778362248000,-208.261282,0.0003978,28]
[421946279,1778362248000,-151.75,0.00039445,120]
[421946280,1778362248000,-150.76,0.00039445,120]
[421946281,1778362248000,-9689.7254,0.00039447,2]
[421946283,1778362248000,-500.0,0.00039499,2]
[421946282,1778362248000,-1561.0,0.00039452,30]
[421946288,1778362248000,-294.93846937,0.00039549,2]
[421946284,1778362248000,-1000.0,0.000395,2]
[421946297,1778362248000,-151.75,0.00039645,120]
[421946285,1778362248000,-160.37,0.00039529,120]
[421946289,1778362248000,-9689.7254,0.00039584,2]
[421946292,1778362248000,-484.32199249,0.00039598,120]
[421946290,1778362248000,-393.51161891,0.00039587,120]
[421946286,1778362248000,-151.75,0.00039545,120]
[421946293,1778362248000,-1200.0,0.000396,14]
[421946295,1778362248000,-160.37,0.00039629,120]
[421946296,1778362248000,-154.45974035,0.00039641,5]
[421946298,1778362248000,-150.76,0.00039645,120]
[421946287,1778362248000,-150.76,0.00039545,120]
[421946322,1778362248000,-363.61109654,0.0003978,2]
[421946328,1778362248000,-151.75,0.00039845,120]
[421946317,1778362248000,-3064.12503599,0.0003978,2]
[421946345,1778362248000,-151.0,0.0003987,30]
[421946339,1778362248000,-299.308539,0.0003987,30]
[421946342,1778362248000,-299.308539,0.0003987,30]
[421946341,1778362248000,-299.308539,0.0003987,30]
[421946344,1778362248000,-151.0,0.0003987,30]
[421946351,1778362248000,-166.49214931,0.0003987,2]
[421946346,1778362248000,-273.119848,0.0003987,30]
[421946352,1778362248000,-166.49214931,0.0003987,2]
[421946358,1778362248000,-240.66864564,0.0003988,120]
[421946359,1778362248000,-474891.12734477,0.0003988,2]
[421946356,1778362248000,-152.0,0.00039879,7]
[421946354,1778362248000,-151.0,0.00039877,14]
[421946355,1778362248000,-1008.81748156,0.00039879,30]
[421946360,1778362248000,-1686174.81596205,0.0003988,2]
[421946357,1778362248000,-25448.32496073,0.0003988,49]
[421946361,1778362248000,-493.86296,0.0003988,2]
[421946315,1778362248000,-34690.35260984,0.0003978,2]
[421946349,1778362248000,-246.14849,0.0003987,7]
[421946343,1778362248000,-151.0,0.0003987,30]
[421946353,1778362248000,-151.0,0.0003987,30]
[421946347,1778362248000,-246.14849,0.0003987,7]
[421946318,1778362248000,-208.261282,0.0003978,28]
[421946348,1778362248000,-246.14849,0.0003987,7]
[421946321,1778362248000,-208.261282,0.0003978,28]
[421946320,1778362248000,-208.261282,0.0003978,28]
[421946323,1778362248000,-484.32199247,0.00039796,120]
[421946337,1778362248000,-151.0,0.0003987,30]
[421946338,1778362248000,-151.0,0.0003987,30]
[421946326,1778362248000,-4200.0,0.000398,14]
[421946331,1778362248000,-255.78255227,0.00039855,120]
[421946335,1778362248000,-509.86538559,0.00039869,2]
[421946340,1778362248000,-299.308539,0.0003987,30]
[421946329,1778362248000,-150.822,0.00039845,120]
[421946327,1778362248000,-160.37,0.00039829,120]
[421946333,1778362248000,-601.0,0.00039863,120]
[421946334,1778362248000,-151.0,0.00039867,14]
[421946330,1778362248000,-393.51161888,0.00039851,120]
[421946336,1778362248000,-313817.99439307,0.0003987,14]
[421946332,1778362248000,-9689.7254,0.00039858,2]
[421946350,1778362248000,-246.14849,0.0003987,7]
[421946393,1778362249000,-208.261282,0.0003988,28]
[421946386,1778362249000,-299.308539,0.0003988,30]
[421946394,1778362249000,-208.261282,0.0003988,28]
[421946388,1778362249000,-299.308539,0.0003988,30]
[421946385,1778362249000,-299.308539,0.0003988,30]
[421946387,1778362249000,-299.308539,0.0003988,30]
[421946396,1778362249000,-208.261282,0.0003988,28]
[421946384,1778362249000,-299.308539,0.0003988,30]
[421946395,1778362249000,-208.261282,0.0003988,28]
[421946403,1778362249000,-246.14849,0.0003988,7]
[421946391,1778362249000,-249.133894,0.0003988,30]
[421946390,1778362249000,-151.0,0.0003988,30]
[421946397,1778362249000,-208.261282,0.0003988,28]
[421946399,1778362249000,-208.261282,0.0003988,28]
[421946406,1778362249000,-246.14849,0.0003988,7]
[421946407,1778362249000,-246.14849,0.0003988,7]
[421946400,1778362249000,-208.261282,0.0003988,28]
[421946383,1778362249000,-299.308539,0.0003988,30]
[421946389,1778362249000,-299.308539,0.0003988,30]
[421946392,1778362249000,-151.0,0.0003988,30]
[421946363,1778362249000,-407.86461,0.0003988,2]
[421946372,1778362249000,-151.0,0.0003987,30]
[421946365,1778362249000,-1137.73049553,0.00037613,2]
[421946366,1778362249000,-19544.27043882,0.0003988,2]
[421946362,1778362249000,-35801.04078637,0.0003988,2]
[421946402,1778362249000,-246.14849,0.0003988,7]
[421946364,1778362249000,-150.0,0.00026849,2]
[421946367,1778362249000,-31773.58487424,0.0003988,2]
[421946369,1778362249000,-150.0,0.00029601,2]
[421946368,1778362249000,-150.0,0.00028192,2]